Workbook

Sheet Départ
B1: À propos du modèle
B2: Gardez la trace de vos dépenses et économies mensuelles en utilisant ce modèle.
B3: Entrez les détails des dépenses dans la table et le revenu mensuel pour calculer les économies.
B4: Le graphique en anneau illustrant les dépenses et les économies se met à jour automatiquement.
B5: Remarque :
B6: Des instructions supplémentaires ont été fournies dans la colonne A de la feuille de calcul « ANNEAU BUDGÉTAIRE ». Ce texte a été intentionnellement caché. Pour supprimer du texte, sélectionnez la colonne A, puis sélectionnez SUPPRIMER. Pour afficher le texte, sélectionnez la colonne A, puis modifiez la couleur de la police.
B7: Pour en apprendre davantage sur la table, appuyez sur SHIFT puis sur F10 dans la table, sélectionnez l'option TABLE, puis sélectionnez TEXTE DE REMPLACEMENT.

Sheet Anneau budgétaire
A1: Créez une roue budgétaire dans cette feuille de calcul. Le titre de la feuille de travail est dans la cellule à droite et l'astuce dans la cellule D1. D'autres instructions utiles sur l'utilisation de cette feuille de calcul se trouvent dans les cellules de cette colonne. Flèche vers le bas pour commencer. | B1: Anneau budgétaire | D1: Remplissez la table dans ce modèle. Le graphique indiquera vos dépenses mensuelles par rapport à votre revenu mensuel. Il calculera également les pourcentages pour vous montrer combien vous économiserez ou avez économisé.
A2: L'étiquette de revenu mensuel est dans la cellule de droite, le graphique en anneau illustrant les dépenses et les économies dans la cellule C2 et l'étiquette du montant des économies dans la cellule G2. | B2: Revenu mensuel | C2: Le graphique en anneau illustre la proportion des dépenses et des économies dans cette cellule. | G2: Montants épargnés
A3: Entrez le revenu mensuel dans la cellule à droite. Le montant économisé est calculé automatiquement dans la cellule G3. L'instruction suivante est dans la cellule A6. | B3: 5,738 $ | G3: =Savings -> 2,777 $
G4: Valeur calculée automatiquement
A6: Entrez les détails dans la table des dépenses en commençant par la cellule de droite. | B6: Dépenses | C6: Catégorie | D6: Montant | E6: Fréquence | F6: Montant mensuel | G6: % du total
B7: Assurance | C7: Transport | D7: 300 $ | E7: Tous les 6 mois | F7: =IF('Anneau budgétaire'!$D$7:$D$23>0,IF('Anneau budgétaire'!$E$7:$E$23<>"",ROUND(IF('Anneau budgétaire'!$E$7:$E$23="Mensuel",'Anneau budgétaire'!$D$7:$D$23,IF('Anneau budgétaire'!$E$7:$E$23="Hebdomadaire",'Anneau budgétaire'!$D$7:$D$23*4,IF('Anneau budgétaire'!$E$7:$E$23="Trimestrielle",'Anneau budgétaire'!$D$7:$D$23/3,IF('Anneau budgétaire'!$E$7:$E$23="Tous les 6 mois",'Anneau budgétaire'!$D$7:$D$23/6,IF('Anneau budgétaire'!$E$7:$E$23="Annuel",'Anneau budgétaire'!$D$7:$D$23/12,IF('Anneau budgétaire'!$E$7:$E$23="Aux deux semaines",'Anneau budgétaire'!$D$7:$D$23*2,IF('Anneau budgétaire'!$E$7:$E$23="Aux deux mois",'Anneau budgétaire'!$D$7:$D$23/2,""))))))),0),""),"") -> 50 $ | G7: =IF('Anneau budgétaire'!$F$7:$F$23<>"",'Anneau budgétaire'!$F$7:$F$23/Income,"") -> 1%
B8: Gaz | C8: Transport | D8: 25 $ | E8: Hebdomadaire | F8: =IF('Anneau budgétaire'!$D$7:$D$23>0,IF('Anneau budgétaire'!$E$7:$E$23<>"",ROUND(IF('Anneau budgétaire'!$E$7:$E$23="Mensuel",'Anneau budgétaire'!$D$7:$D$23,IF('Anneau budgétaire'!$E$7:$E$23="Hebdomadaire",'Anneau budgétaire'!$D$7:$D$23*4,IF('Anneau budgétaire'!$E$7:$E$23="Trimestrielle",'Anneau budgétaire'!$D$7:$D$23/3,IF('Anneau budgétaire'!$E$7:$E$23="Tous les 6 mois",'Anneau budgétaire'!$D$7:$D$23/6,IF('Anneau budgétaire'!$E$7:$E$23="Annuel",'Anneau budgétaire'!$D$7:$D$23/12,IF('Anneau budgétaire'!$E$7:$E$23="Aux deux semaines",'Anneau budgétaire'!$D$7:$D$23*2,IF('Anneau budgétaire'!$E$7:$E$23="Aux deux mois",'Anneau budgétaire'!$D$7:$D$23/2,""))))))),0),""),"") -> 100 $ | G8: =IF('Anneau budgétaire'!$F$7:$F$23<>"",'Anneau budgétaire'!$F$7:$F$23/Income,"") -> 2%
B9: Paiement de voiture | C9: Transport | D9: 200 $ | E9: Mensuel | F9: =IF('Anneau budgétaire'!$D$7:$D$23>0,IF('Anneau budgétaire'!$E$7:$E$23<>"",ROUND(IF('Anneau budgétaire'!$E$7:$E$23="Mensuel",'Anneau budgétaire'!$D$7:$D$23,IF('Anneau budgétaire'!$E$7:$E$23="Hebdomadaire",'Anneau budgétaire'!$D$7:$D$23*4,IF('Anneau budgétaire'!$E$7:$E$23="Trimestrielle",'Anneau budgétaire'!$D$7:$D$23/3,IF('Anneau budgétaire'!$E$7:$E$23="Tous les 6 mois",'Anneau budgétaire'!$D$7:$D$23/6,IF('Anneau budgétaire'!$E$7:$E$23="Annuel",'Anneau budgétaire'!$D$7:$D$23/12,IF('Anneau budgétaire'!$E$7:$E$23="Aux deux semaines",'Anneau budgétaire'!$D$7:$D$23*2,IF('Anneau budgétaire'!$E$7:$E$23="Aux deux mois",'Anneau budgétaire'!$D$7:$D$23/2,""))))))),0),""),"") -> 200 $ | G9: =IF('Anneau budgétaire'!$F$7:$F$23<>"",'Anneau budgétaire'!$F$7:$F$23/Income,"") -> 3%
B10: Hypothèque | C10: Maison | D10: 1,600 $ | E10: Mensuel | F10: =IF('Anneau budgétaire'!$D$7:$D$23>0,IF('Anneau budgétaire'!$E$7:$E$23<>"",ROUND(IF('Anneau budgétaire'!$E$7:$E$23="Mensuel",'Anneau budgétaire'!$D$7:$D$23,IF('Anneau budgétaire'!$E$7:$E$23="Hebdomadaire",'Anneau budgétaire'!$D$7:$D$23*4,IF('Anneau budgétaire'!$E$7:$E$23="Trimestrielle",'Anneau budgétaire'!$D$7:$D$23/3,IF('Anneau budgétaire'!$E$7:$E$23="Tous les 6 mois",'Anneau budgétaire'!$D$7:$D$23/6,IF('Anneau budgétaire'!$E$7:$E$23="Annuel",'Anneau budgétaire'!$D$7:$D$23/12,IF('Anneau budgétaire'!$E$7:$E$23="Aux deux semaines",'Anneau budgétaire'!$D$7:$D$23*2,IF('Anneau budgétaire'!$E$7:$E$23="Aux deux mois",'Anneau budgétaire'!$D$7:$D$23/2,""))))))),0),""),"") -> 1,600 $ | G10: =IF('Anneau budgétaire'!$F$7:$F$23<>"",'Anneau budgétaire'!$F$7:$F$23/Income,"") -> 28%
B11: Câble | C11: Maison | D11: 60 $ | E11: Mensuel | F11: =IF('Anneau budgétaire'!$D$7:$D$23>0,IF('Anneau budgétaire'!$E$7:$E$23<>"",ROUND(IF('Anneau budgétaire'!$E$7:$E$23="Mensuel",'Anneau budgétaire'!$D$7:$D$23,IF('Anneau budgétaire'!$E$7:$E$23="Hebdomadaire",'Anneau budgétaire'!$D$7:$D$23*4,IF('Anneau budgétaire'!$E$7:$E$23="Trimestrielle",'Anneau budgétaire'!$D$7:$D$23/3,IF('Anneau budgétaire'!$E$7:$E$23="Tous les 6 mois",'Anneau budgétaire'!$D$7:$D$23/6,IF('Anneau budgétaire'!$E$7:$E$23="Annuel",'Anneau budgétaire'!$D$7:$D$23/12,IF('Anneau budgétaire'!$E$7:$E$23="Aux deux semaines",'Anneau budgétaire'!$D$7:$D$23*2,IF('Anneau budgétaire'!$E$7:$E$23="Aux deux mois",'Anneau budgétaire'!$D$7:$D$23/2,""))))))),0),""),"") -> 60 $ | G11: =IF('Anneau budgétaire'!$F$7:$F$23<>"",'Anneau budgétaire'!$F$7:$F$23/Income,"") -> 1%
B12: Soirée cinéma | C12: Divertissement | D12: 70 $ | E12: Mensuel | F12: =IF('Anneau budgétaire'!$D$7:$D$23>0,IF('Anneau budgétaire'!$E$7:$E$23<>"",ROUND(IF('Anneau budgétaire'!$E$7:$E$23="Mensuel",'Anneau budgétaire'!$D$7:$D$23,IF('Anneau budgétaire'!$E$7:$E$23="Hebdomadaire",'Anneau budgétaire'!$D$7:$D$23*4,IF('Anneau budgétaire'!$E$7:$E$23="Trimestrielle",'Anneau budgétaire'!$D$7:$D$23/3,IF('Anneau budgétaire'!$E$7:$E$23="Tous les 6 mois",'Anneau budgétaire'!$D$7:$D$23/6,IF('Anneau budgétaire'!$E$7:$E$23="Annuel",'Anneau budgétaire'!$D$7:$D$23/12,IF('Anneau budgétaire'!$E$7:$E$23="Aux deux semaines",'Anneau budgétaire'!$D$7:$D$23*2,IF('Anneau budgétaire'!$E$7:$E$23="Aux deux mois",'Anneau budgétaire'!$D$7:$D$23/2,""))))))),0),""),"") -> 70 $ | G12: =IF('Anneau budgétaire'!$F$7:$F$23<>"",'Anneau budgétaire'!$F$7:$F$23/Income,"") -> 1%
B13: Espadrilles | C13: Divers | D13: 300 $ | E13: Annuel | F13: =IF('Anneau budgétaire'!$D$7:$D$23>0,IF('Anneau budgétaire'!$E$7:$E$23<>"",ROUND(IF('Anneau budgétaire'!$E$7:$E$23="Mensuel",'Anneau budgétaire'!$D$7:$D$23,IF('Anneau budgétaire'!$E$7:$E$23="Hebdomadaire",'Anneau budgétaire'!$D$7:$D$23*4,IF('Anneau budgétaire'!$E$7:$E$23="Trimestrielle",'Anneau budgétaire'!$D$7:$D$23/3,IF('Anneau budgétaire'!$E$7:$E$23="Tous les 6 mois",'Anneau budgétaire'!$D$7:$D$23/6,IF('Anneau budgétaire'!$E$7:$E$23="Annuel",'Anneau budgétaire'!$D$7:$D$23/12,IF('Anneau budgétaire'!$E$7:$E$23="Aux deux semaines",'Anneau budgétaire'!$D$7:$D$23*2,IF('Anneau budgétaire'!$E$7:$E$23="Aux deux mois",'Anneau budgétaire'!$D$7:$D$23/2,""))))))),0),""),"") -> 25 $ | G13: =IF('Anneau budgétaire'!$F$7:$F$23<>"",'Anneau budgétaire'!$F$7:$F$23/Income,"") -> 0%
B14: Nourriture pour chiens | C14: Divers | D14: 60 $ | E14: Mensuel | F14: =IF('Anneau budgétaire'!$D$7:$D$23>0,IF('Anneau budgétaire'!$E$7:$E$23<>"",ROUND(IF('Anneau budgétaire'!$E$7:$E$23="Mensuel",'Anneau budgétaire'!$D$7:$D$23,IF('Anneau budgétaire'!$E$7:$E$23="Hebdomadaire",'Anneau budgétaire'!$D$7:$D$23*4,IF('Anneau budgétaire'!$E$7:$E$23="Trimestrielle",'Anneau budgétaire'!$D$7:$D$23/3,IF('Anneau budgétaire'!$E$7:$E$23="Tous les 6 mois",'Anneau budgétaire'!$D$7:$D$23/6,IF('Anneau budgétaire'!$E$7:$E$23="Annuel",'Anneau budgétaire'!$D$7:$D$23/12,IF('Anneau budgétaire'!$E$7:$E$23="Aux deux semaines",'Anneau budgétaire'!$D$7:$D$23*2,IF('Anneau budgétaire'!$E$7:$E$23="Aux deux mois",'Anneau budgétaire'!$D$7:$D$23/2,""))))))),0),""),"") -> 60 $ | G14: =IF('Anneau budgétaire'!$F$7:$F$23<>"",'Anneau budgétaire'!$F$7:$F$23/Income,"") -> 1%
B15: Assurance animal | C15: Divers | D15: 70 $ | E15: Annuel | F15: =IF('Anneau budgétaire'!$D$7:$D$23>0,IF('Anneau budgétaire'!$E$7:$E$23<>"",ROUND(IF('Anneau budgétaire'!$E$7:$E$23="Mensuel",'Anneau budgétaire'!$D$7:$D$23,IF('Anneau budgétaire'!$E$7:$E$23="Hebdomadaire",'Anneau budgétaire'!$D$7:$D$23*4,IF('Anneau budgétaire'!$E$7:$E$23="Trimestrielle",'Anneau budgétaire'!$D$7:$D$23/3,IF('Anneau budgétaire'!$E$7:$E$23="Tous les 6 mois",'Anneau budgétaire'!$D$7:$D$23/6,IF('Anneau budgétaire'!$E$7:$E$23="Annuel",'Anneau budgétaire'!$D$7:$D$23/12,IF('Anneau budgétaire'!$E$7:$E$23="Aux deux semaines",'Anneau budgétaire'!$D$7:$D$23*2,IF('Anneau budgétaire'!$E$7:$E$23="Aux deux mois",'Anneau budgétaire'!$D$7:$D$23/2,""))))))),0),""),"") -> 6 $ | G15: =IF('Anneau budgétaire'!$F$7:$F$23<>"",'Anneau budgétaire'!$F$7:$F$23/Income,"") -> 0%
B16: Épicerie | C16: Alimentation | D16: 100 $ | E16: Hebdomadaire | F16: =IF('Anneau budgétaire'!$D$7:$D$23>0,IF('Anneau budgétaire'!$E$7:$E$23<>"",ROUND(IF('Anneau budgétaire'!$E$7:$E$23="Mensuel",'Anneau budgétaire'!$D$7:$D$23,IF('Anneau budgétaire'!$E$7:$E$23="Hebdomadaire",'Anneau budgétaire'!$D$7:$D$23*4,IF('Anneau budgétaire'!$E$7:$E$23="Trimestrielle",'Anneau budgétaire'!$D$7:$D$23/3,IF('Anneau budgétaire'!$E$7:$E$23="Tous les 6 mois",'Anneau budgétaire'!$D$7:$D$23/6,IF('Anneau budgétaire'!$E$7:$E$23="Annuel",'Anneau budgétaire'!$D$7:$D$23/12,IF('Anneau budgétaire'!$E$7:$E$23="Aux deux semaines",'Anneau budgétaire'!$D$7:$D$23*2,IF('Anneau budgétaire'!$E$7:$E$23="Aux deux mois",'Anneau budgétaire'!$D$7:$D$23/2,""))))))),0),""),"") -> 400 $ | G16: =IF('Anneau budgétaire'!$F$7:$F$23<>"",'Anneau budgétaire'!$F$7:$F$23/Income,"") -> 7%
B17: Café | C17: Alimentation | D17: 25 $ | E17: Hebdomadaire | F17: =IF('Anneau budgétaire'!$D$7:$D$23>0,IF('Anneau budgétaire'!$E$7:$E$23<>"",ROUND(IF('Anneau budgétaire'!$E$7:$E$23="Mensuel",'Anneau budgétaire'!$D$7:$D$23,IF('Anneau budgétaire'!$E$7:$E$23="Hebdomadaire",'Anneau budgétaire'!$D$7:$D$23*4,IF('Anneau budgétaire'!$E$7:$E$23="Trimestrielle",'Anneau budgétaire'!$D$7:$D$23/3,IF('Anneau budgétaire'!$E$7:$E$23="Tous les 6 mois",'Anneau budgétaire'!$D$7:$D$23/6,IF('Anneau budgétaire'!$E$7:$E$23="Annuel",'Anneau budgétaire'!$D$7:$D$23/12,IF('Anneau budgétaire'!$E$7:$E$23="Aux deux semaines",'Anneau budgétaire'!$D$7:$D$23*2,IF('Anneau budgétaire'!$E$7:$E$23="Aux deux mois",'Anneau budgétaire'!$D$7:$D$23/2,""))))))),0),""),"") -> 100 $ | G17: =IF('Anneau budgétaire'!$F$7:$F$23<>"",'Anneau budgétaire'!$F$7:$F$23/Income,"") -> 2%
B18: Matériel d'escalade | C18: Divertissement | D18: 170 $ | E18: Annuel | F18: =IF('Anneau budgétaire'!$D$7:$D$23>0,IF('Anneau budgétaire'!$E$7:$E$23<>"",ROUND(IF('Anneau budgétaire'!$E$7:$E$23="Mensuel",'Anneau budgétaire'!$D$7:$D$23,IF('Anneau budgétaire'!$E$7:$E$23="Hebdomadaire",'Anneau budgétaire'!$D$7:$D$23*4,IF('Anneau budgétaire'!$E$7:$E$23="Trimestrielle",'Anneau budgétaire'!$D$7:$D$23/3,IF('Anneau budgétaire'!$E$7:$E$23="Tous les 6 mois",'Anneau budgétaire'!$D$7:$D$23/6,IF('Anneau budgétaire'!$E$7:$E$23="Annuel",'Anneau budgétaire'!$D$7:$D$23/12,IF('Anneau budgétaire'!$E$7:$E$23="Aux deux semaines",'Anneau budgétaire'!$D$7:$D$23*2,IF('Anneau budgétaire'!$E$7:$E$23="Aux deux mois",'Anneau budgétaire'!$D$7:$D$23/2,""))))))),0),""),"") -> 14 $ | G18: =IF('Anneau budgétaire'!$F$7:$F$23<>"",'Anneau budgétaire'!$F$7:$F$23/Income,"") -> 0%
B19: Abonnement au gym | C19: Divers | D19: 60 $ | E19: Mensuel | F19: =IF('Anneau budgétaire'!$D$7:$D$23>0,IF('Anneau budgétaire'!$E$7:$E$23<>"",ROUND(IF('Anneau budgétaire'!$E$7:$E$23="Mensuel",'Anneau budgétaire'!$D$7:$D$23,IF('Anneau budgétaire'!$E$7:$E$23="Hebdomadaire",'Anneau budgétaire'!$D$7:$D$23*4,IF('Anneau budgétaire'!$E$7:$E$23="Trimestrielle",'Anneau budgétaire'!$D$7:$D$23/3,IF('Anneau budgétaire'!$E$7:$E$23="Tous les 6 mois",'Anneau budgétaire'!$D$7:$D$23/6,IF('Anneau budgétaire'!$E$7:$E$23="Annuel",'Anneau budgétaire'!$D$7:$D$23/12,IF('Anneau budgétaire'!$E$7:$E$23="Aux deux semaines",'Anneau budgétaire'!$D$7:$D$23*2,IF('Anneau budgétaire'!$E$7:$E$23="Aux deux mois",'Anneau budgétaire'!$D$7:$D$23/2,""))))))),0),""),"") -> 60 $ | G19: =IF('Anneau budgétaire'!$F$7:$F$23<>"",'Anneau budgétaire'!$F$7:$F$23/Income,"") -> 1%
B20: Écouteurs | C20: Divertissement | D20: 50 $ | E20: Annuel | F20: =IF('Anneau budgétaire'!$D$7:$D$23>0,IF('Anneau budgétaire'!$E$7:$E$23<>"",ROUND(IF('Anneau budgétaire'!$E$7:$E$23="Mensuel",'Anneau budgétaire'!$D$7:$D$23,IF('Anneau budgétaire'!$E$7:$E$23="Hebdomadaire",'Anneau budgétaire'!$D$7:$D$23*4,IF('Anneau budgétaire'!$E$7:$E$23="Trimestrielle",'Anneau budgétaire'!$D$7:$D$23/3,IF('Anneau budgétaire'!$E$7:$E$23="Tous les 6 mois",'Anneau budgétaire'!$D$7:$D$23/6,IF('Anneau budgétaire'!$E$7:$E$23="Annuel",'Anneau budgétaire'!$D$7:$D$23/12,IF('Anneau budgétaire'!$E$7:$E$23="Aux deux semaines",'Anneau budgétaire'!$D$7:$D$23*2,IF('Anneau budgétaire'!$E$7:$E$23="Aux deux mois",'Anneau budgétaire'!$D$7:$D$23/2,""))))))),0),""),"") -> 4 $ | G20: =IF('Anneau budgétaire'!$F$7:$F$23<>"",'Anneau budgétaire'!$F$7:$F$23/Income,"") -> 0%
B21: Coupe de cheveux | C21: Divers | D21: 70 $ | E21: Mensuel | F21: =IF('Anneau budgétaire'!$D$7:$D$23>0,IF('Anneau budgétaire'!$E$7:$E$23<>"",ROUND(IF('Anneau budgétaire'!$E$7:$E$23="Mensuel",'Anneau budgétaire'!$D$7:$D$23,IF('Anneau budgétaire'!$E$7:$E$23="Hebdomadaire",'Anneau budgétaire'!$D$7:$D$23*4,IF('Anneau budgétaire'!$E$7:$E$23="Trimestrielle",'Anneau budgétaire'!$D$7:$D$23/3,IF('Anneau budgétaire'!$E$7:$E$23="Tous les 6 mois",'Anneau budgétaire'!$D$7:$D$23/6,IF('Anneau budgétaire'!$E$7:$E$23="Annuel",'Anneau budgétaire'!$D$7:$D$23/12,IF('Anneau budgétaire'!$E$7:$E$23="Aux deux semaines",'Anneau budgétaire'!$D$7:$D$23*2,IF('Anneau budgétaire'!$E$7:$E$23="Aux deux mois",'Anneau budgétaire'!$D$7:$D$23/2,""))))))),0),""),"") -> 70 $ | G21: =IF('Anneau budgétaire'!$F$7:$F$23<>"",'Anneau budgétaire'!$F$7:$F$23/Income,"") -> 1%
B22: Jeux vidéo | C22: Divertissement | D22: 100 $ | E22: Mensuel | F22: =IF('Anneau budgétaire'!$D$7:$D$23>0,IF('Anneau budgétaire'!$E$7:$E$23<>"",ROUND(IF('Anneau budgétaire'!$E$7:$E$23="Mensuel",'Anneau budgétaire'!$D$7:$D$23,IF('Anneau budgétaire'!$E$7:$E$23="Hebdomadaire",'Anneau budgétaire'!$D$7:$D$23*4,IF('Anneau budgétaire'!$E$7:$E$23="Trimestrielle",'Anneau budgétaire'!$D$7:$D$23/3,IF('Anneau budgétaire'!$E$7:$E$23="Tous les 6 mois",'Anneau budgétaire'!$D$7:$D$23/6,IF('Anneau budgétaire'!$E$7:$E$23="Annuel",'Anneau budgétaire'!$D$7:$D$23/12,IF('Anneau budgétaire'!$E$7:$E$23="Aux deux semaines",'Anneau budgétaire'!$D$7:$D$23*2,IF('Anneau budgétaire'!$E$7:$E$23="Aux deux mois",'Anneau budgétaire'!$D$7:$D$23/2,""))))))),0),""),"") -> 100 $ | G22: =IF('Anneau budgétaire'!$F$7:$F$23<>"",'Anneau budgétaire'!$F$7:$F$23/Income,"") -> 2%
B23: Vêtements | C23: Divers | D23: 500 $ | E23: Annuel | F23: =IF('Anneau budgétaire'!$D$7:$D$23>0,IF('Anneau budgétaire'!$E$7:$E$23<>"",ROUND(IF('Anneau budgétaire'!$E$7:$E$23="Mensuel",'Anneau budgétaire'!$D$7:$D$23,IF('Anneau budgétaire'!$E$7:$E$23="Hebdomadaire",'Anneau budgétaire'!$D$7:$D$23*4,IF('Anneau budgétaire'!$E$7:$E$23="Trimestrielle",'Anneau budgétaire'!$D$7:$D$23/3,IF('Anneau budgétaire'!$E$7:$E$23="Tous les 6 mois",'Anneau budgétaire'!$D$7:$D$23/6,IF('Anneau budgétaire'!$E$7:$E$23="Annuel",'Anneau budgétaire'!$D$7:$D$23/12,IF('Anneau budgétaire'!$E$7:$E$23="Aux deux semaines",'Anneau budgétaire'!$D$7:$D$23*2,IF('Anneau budgétaire'!$E$7:$E$23="Aux deux mois",'Anneau budgétaire'!$D$7:$D$23/2,""))))))),0),""),"") -> 42 $ | G23: =IF('Anneau budgétaire'!$F$7:$F$23<>"",'Anneau budgétaire'!$F$7:$F$23/Income,"") -> 1%

Sheet Data (hidden)
A1: Cette feuille devrait rester cachée
A2: Catégories | B2: Montant par catégorie | C2: Pourcentage du total | D2: Fréquence | E2: Compte d'épargne
A3: Maison | B3: =IF(SUMIF('Anneau budgétaire'!$C$7:$C$23,"Maison",'Anneau budgétaire'!$F$7:$F$23)>0,SUMIF('Anneau budgétaire'!$C$7:$C$23,"Maison",'Anneau budgétaire'!$F$7:$F$23),NA()) -> 1,660 $ | C3: =IF(B3>0,B3/Income,"") -> 29% | D3: Hebdomadaire | E3: =Income-SUM('Anneau budgétaire'!$F$7:$F$23) -> 2,777 $
A4: Divertissement | B4: =IF(SUMIF('Anneau budgétaire'!$C$7:$C$23,"Divertissement",'Anneau budgétaire'!$F$7:$F$23)>0,SUMIF('Anneau budgétaire'!$C$7:$C$23,"Divertissement",'Anneau budgétaire'!$F$7:$F$23),NA()) -> 188 $ | C4: 3% | D4: Mensuel
A5: Transport | B5: =IF(SUMIF('Anneau budgétaire'!$C$7:$C$23,"Transport",'Anneau budgétaire'!$F$7:$F$23)>0,SUMIF('Anneau budgétaire'!$C$7:$C$23,"Transport",'Anneau budgétaire'!$F$7:$F$23),NA()) -> 350 $ | C5: 6% | D5: Trimestrielle
A6: Alimentation | B6: =IF(SUMIF('Anneau budgétaire'!$C$7:$C$23,"Alimentation",'Anneau budgétaire'!$F$7:$F$23)>0,SUMIF('Anneau budgétaire'!$C$7:$C$23,"Alimentation",'Anneau budgétaire'!$F$7:$F$23),NA()) -> 500 $ | C6: 9% | D6: Tous les 6 mois
A7: Divers | B7: =IF(SUMIF('Anneau budgétaire'!$C$7:$C$23,"Divers",'Anneau budgétaire'!$F$7:$F$23)>0,SUMIF('Anneau budgétaire'!$C$7:$C$23,"Divers",'Anneau budgétaire'!$F$7:$F$23),NA()) -> 263 $ | C7: 5% | D7: Annuel
A8: Compte d'épargne | B8: =IF(E3>0,E3,NA()) -> 2,777 $ | C8: 48% | D8: Aux deux semaines
D9: Aux deux mois
B10: TOTAL : | C10: =SUM(C3:C8) -> 100%
